bitfinex/quotes_SOLUSD_20240725
["timestamp","ask_amount","ask_price","bid_price","bid_amount"]
[1721939458301,386.452,168.01,167.9,46.18746734]
[1721939458583,380.5,168.01,167.92,16.5793]
[1721939458792,5.9513,168.03,167.93,66.18644612]
[1721939458995,5.9509,168.04,167.93,66.18644612]
[1721939459201,0.7830015,168.06,167.94,6.2247]
[1721939459370,5.9514,168.03,167.95,45.0]
[1721939459693,5.9508,168.05,167.95,46.18626522]
[1721939459903,0.7830015,168.06,167.96,1.18626522]
[1721939460074,1.48789192,168.05,167.95,45.0]
[1721939460413,0.7830015,168.06,167.95,45.0]
[1721939460414,0.7830015,168.06,167.98,27.34]
[1721939460599,0.7830015,168.06,167.99,66.18505623]
[1721939460796,0.7830015,168.06,168.0,16.5793]
[1721939461094,0.7830015,168.06,168.01,46.18486156]
[1721939461269,0.7830015,168.06,168.02,1.18497134]
[1721939461472,0.7830015,168.06,168.03,6.2247]
[1721939462284,0.7830015,168.06,168.0,16.5793]
[1721939462285,6.7333015,168.06,168.0,16.5793]
[1721939462494,0.7830015,168.06,168.0,16.5793]
[1721939462683,0.7830015,168.06,168.01,1.18562706]
[1721939462996,0.7830015,168.06,168.02,1.18471239]
[1721939463719,0.7830015,168.06,167.93,14.28586058]
[1721939463900,0.7830015,168.06,167.99,27.34]
[1721939464072,0.7830015,168.06,168.0,45.0]
[1721939465883,0.7830015,168.06,167.96,27.34]
[1721939466671,6.7335015,168.06,167.96,33.6017]
[1721939466875,0.7830015,168.06,167.96,33.6017]
[1721939467877,0.7830015,168.06,167.97,65.0]
[1721939468093,0.7830015,168.06,167.99,27.34]
[1721939468275,0.7830015,168.06,168.0,45.0]
[1721939469675,0.7830015,168.06,168.01,20.0]
[1721939469881,0.7830015,168.06,168.02,45.0]
[1721939471202,0.7830015,168.06,167.97,22.41119361]
[1721939471498,0.7830015,168.06,167.99,27.34]
[1721939471703,0.7830015,168.06,168.0,65.0]
[1721939472394,0.7830015,168.06,168.01,15.3697]
[1721939472593,0.7830015,168.06,168.02,65.0]
[1721939473083,0.7830015,168.06,168.03,6.1298]
[1721939473283,0.7830015,168.06,168.04,45.0]
[1721939475274,0.7830015,168.06,168.01,15.3697]
[1721939476201,0.7830015,168.06,167.99,27.34]
[1721939477701,0.7830015,168.06,168.03,15.4733]
[1721939478000,0.7830015,168.06,168.04,45.0]
[1721939479118,16.2108,168.2,168.05,33.7183]
[1721939479410,16.2108,168.2,168.08,27.34]
[1721939479590,5.946,168.18,168.09,45.0]
[1721939479901,16.2108,168.2,168.09,45.0]
[1721939480101,5.9457,168.19,168.09,45.0]
[1721939480409,0.7830015,168.23,168.11,27.34]
[1721939480593,0.7830015,168.23,168.12,45.0]
[1721939482404,6.7273015,168.23,168.12,45.0]
[1721939483020,5.9446,168.22,168.12,45.0]
[1721939483190,1.48618091,168.22,168.1,15.4733]
[1721939483508,0.7830015,168.23,168.1,15.4733]
[1721939483704,0.7830015,168.23,168.11,27.34]
[1721939484400,0.7830015,168.23,168.12,45.0]
[1721939485388,5.9456,168.2,168.1,15.4733]
[1721939485582,5.9449,168.21,168.1,15.4733]
[1721939485881,5.9446,168.22,168.1,15.4733]
[1721939486309,2.26941209,168.23,168.1,15.4733]
[1721939486512,1.48641059,168.21,168.1,15.4733]
[1721939486709,20.7830015,168.23,168.1,15.4733]
[1721939486909,0.7830015,168.23,168.1,15.4733]
[1721939487105,6.7273015,168.23,168.11,27.34]
[1721939487314,0.7830015,168.23,168.11,27.34]
[1721939487813,6.7272015,168.23,168.12,45.0]
[1721939488187,1.48615167,168.22,168.12,45.0]
[1721939488386,5.9453,168.2,168.12,45.0]
[1721939488615,1.48615167,168.22,168.12,45.0]
[1721939488616,5.9449,168.22,168.12,45.0]
[1721939488799,5.945,168.21,168.12,45.0]
[1721939489002,2.26945316,168.23,168.12,45.0]
[1721939489201,2.26945316,168.23,168.11,45.0]
[1721939489495,2.26945316,168.23,168.1,15.4733]
[1721939490005,0.7830015,168.23,168.1,15.4733]
[1721939490209,2.2694381,168.23,168.1,15.4733]
[1721939490398,5.9452,168.21,168.1,15.4733]
[1721939490719,0.7830015,168.23,168.1,15.4733]
[1721939490720,5.9453,168.2,168.1,15.4733]
[1721939491025,5.9446,168.22,168.11,45.0]
[1721939491489,5.9449,168.21,168.11,45.0]
[1721939492420,5.9446,168.22,168.11,45.0]
[1721939492794,0.7830015,168.23,168.11,45.0]
[1721939493018,5.9453,168.2,168.11,45.0]
[1721939493200,0.7830015,168.23,168.11,45.0]
[1721939493402,5.9448,168.22,168.11,45.0]
[1721939493714,5.9446,168.22,168.11,45.0]
[1721939493904,0.7830015,168.23,168.11,72.34]
[1721939494099,2.26915758,168.23,168.11,72.34]
[1721939494313,5.9446,168.22,168.11,72.34]
[1721939494492,0.7830015,168.23,168.12,6.3646]
[1721939494695,0.7830015,168.23,168.13,45.0]
[1721939495104,5.9447,168.22,168.13,45.0]
[1721939495312,5.9447,168.22,168.12,6.3646]
[1721939495513,0.7830015,168.23,168.1,15.4733]
[1721939495514,1.48644568,168.21,168.1,15.4733]
[1721939495727,2.26966765,168.23,168.1,15.4733]
[1721939496524,5.945,168.21,168.1,15.4733]
[1721939496725,0.7830015,168.23,168.1,15.4733]
[1721939497106,0.7830015,168.23,168.11,27.34]
[1721939497502,20.5332015,168.26,168.1,15.4733]
[1721939497703,1.48631209,168.25,168.11,45.0]
[1721939497910,5.9449,168.21,168.11,45.0]
[1721939498206,47.8732015,168.26,168.11,72.34]
[1721939498530,20.5332015,168.26,168.11,72.34]
[1721939498700,22.0193329,168.26,168.11,72.34]
[1721939498902,5.9451,168.21,168.11,72.34]
[1721939499211,5.9451,168.21,168.11,45.0]
[1721939499410,5.9446,168.22,168.11,45.0]
[1721939499722,47.8732015,168.26,168.11,45.0]
[1721939499926,41.2126015,168.26,168.11,45.0]
[1721939500104,0.54718249,170.22,168.19,27.34]
[1721939500105,387.1001,168.35,168.19,27.34]
[1721939500425,387.1001,168.35,168.2,65.0]
[1721939500426,1.48544999,168.34,168.2,65.0]
[1721939501127,12.5401,168.35,168.2,65.0]
[1721939501305,1.48545149,168.34,168.2,65.0]
[1721939501498,8.08573189,168.35,168.2,65.0]
[1721939501706,6.6001,168.35,168.2,65.0]
[1721939501917,1.48552896,168.34,168.2,65.0]
[1721939502114,1.48559539,168.33,168.2,65.0]
[1721939502406,1.48545632,168.32,168.2,65.0]
[1721939502715,6.6001,168.35,168.2,65.0]
[1721939503031,5.9403,168.34,168.2,45.0]
[1721939503206,1.48557154,168.33,168.2,45.0]
[1721939503406,5.9408,168.33,168.21,0.49566241]
[1721939503607,5.9404,168.34,168.21,0.49566241]
[1721939504313,14.02567406,168.35,168.21,0.49566241]
[1721939504515,1.48557406,168.33,168.21,0.49566241]
[1721939504713,6.6001,168.35,168.23,6.6615]
[1721939504924,1.48541125,168.34,168.24,45.0]
[1721939505112,1.48541125,168.34,168.23,6.6615]
[1721939505433,5.9409,168.33,168.23,6.6615]
[1721939505609,1.48562398,168.32,168.23,6.6615]
[1721939505954,1.48562343,168.31,168.22,15.1956]
[1721939506106,7.42702343,168.31,168.19,6.3523]
[1721939506311,1.48585093,168.3,168.19,6.3523]
[1721939506639,7.42798815,168.29,168.19,6.3523]
[1721939506935,21.4508,168.35,168.19,6.3523]
[1721939506936,7.42697096,168.32,168.19,6.3523]
[1721939507102,5.9414,168.31,168.19,6.3523]
[1721939507307,1.48585745,168.3,168.19,6.3523]
[1721939507506,5.9414,168.31,168.19,6.3523]
[1721939507806,5.9421,168.29,168.19,6.3523]
[1721939508002,5.9418,168.3,168.19,6.3523]
[1721939508229,1.48587217,168.29,168.19,6.3523]
[1721939509030,61.2848,168.28,168.15,6.0508]
[1721939509234,26.0624,168.27,168.15,6.54818036]
[1721939509420,5.9435,168.26,168.15,6.0508]
[1721939509740,5.9439,168.24,168.15,6.0508]
[1721939509919,6.0624,168.27,168.15,6.54837943]
[1721939509920,12.0055,168.27,168.15,6.54837943]
[1721939510229,5.9432,168.26,168.15,6.54837943]
[1721939510416,12.0053,168.27,168.15,6.54837943]
[1721939510933,6.0624,168.27,168.15,6.54837943]
[1721939511106,6.0624,168.27,168.16,45.0]
[1721939511515,1.48610337,168.26,168.16,45.0]
[1721939511711,16.0648,168.28,168.17,0.49689125]
[1721939511928,22.0072,168.28,168.17,0.49689125]
[1721939512128,22.0072,168.28,168.16,72.34]
[1721939512129,6.0941,168.31,168.18,0.49663561]
[1721939512334,5.9417,168.3,168.18,0.49663561]
[1721939512743,1.48587351,168.29,168.17,0.49642076]
[1721939513039,7.42807351,168.29,168.17,0.49642076]
[1721939513215,1.48601849,168.29,168.16,72.34]
[1721939513419,5.9421,168.29,168.17,0.49677917]
[1721939513630,5.9421,168.29,168.18,0.49674232]
[1721939514135,7.42799201,168.29,168.17,0.49646518]
[1721939514648,5.9421,168.29,168.18,0.49648559]
[1721939514839,5.9418,168.3,168.18,0.49648559]
[1721939515543,12.0356,168.31,168.18,0.49648559]
[1721939515740,7.42764089,168.3,168.18,0.49648559]
[1721939515988,1.48585653,168.29,168.18,0.49648559]
[1721939516242,1.48579815,168.29,168.18,0.49648559]
[1721939516419,1.48579691,168.28,168.16,72.34]
[1721939517042,1.48579691,168.28,168.17,0.49642379]
[1721939517834,1.48587551,168.28,168.17,0.49642558]
[1721939518037,1.48587551,168.28,168.18,0.49639423]
[1721939518437,1.48587551,168.28,168.17,0.49642631]
[1721939519123,1.48587627,168.27,168.16,72.34]
[1721939519338,1.48605371,168.26,168.16,27.34]
[1721939520169,5.9436,168.25,168.16,27.34]
[1721939520349,1.48610882,168.3,168.15,6.0508]
[1721939520541,17.88,168.28,168.15,6.0508]
[1721939520745,5.9438,168.25,168.16,0.49743952]
[1721939520957,20.0,168.27,168.16,0.49743952]
[1721939521157,5.9434,168.26,168.16,0.49743952]
[1721939522175,27.34,168.29,168.16,0.49743952]
[1721939522371,7.58014111,168.31,168.16,72.83743952]
[1721939522669,5.9425,168.28,168.16,72.83743952]
[1721939522974,5.9422,168.29,168.16,72.83743952]
[1721939523144,5.9425,168.28,168.16,72.83743952]
[1721939523341,5.9421,168.29,168.16,72.83743952]
[1721939523772,5.9419,168.3,168.16,72.83743952]
[1721939524447,5.9421,168.29,168.16,72.83743952]
[1721939524752,5.9425,168.28,168.16,72.83743952]
[1721939525370,7.57989906,168.31,168.16,72.83743952]
[1721939525576,5.9426,168.28,168.16,72.83743952]
[1721939526474,5.9428,168.27,168.16,72.83743952]
[1721939527153,5.9424,168.29,168.16,72.83743952]
[1721939527680,5.9425,168.28,168.16,72.83743952]
[1721939528372,5.9428,168.27,168.16,72.83743952]
[1721939528585,1.48599391,168.26,168.15,6.0508]
[1721939528883,1.48617035,168.26,168.15,6.0508]
[1721939529177,14.8603,168.24,168.14,16.2343]
[1721939529377,1.48660418,168.23,168.14,16.2343]
[1721939529573,5.9455,168.2,168.14,16.2343]
[1721939530050,1.48660418,168.23,168.14,16.2343]
[1721939530253,5.9446,168.22,168.14,16.2343]
[1721939530481,5.9443,168.23,168.14,16.2343]
[1721939530658,27.43037193,168.24,168.14,16.2343]
[1721939530865,20.0,168.24,168.14,16.2343]
[1721939531065,21.4674,168.25,168.15,0.49767805]
[1721939531259,5.9439,168.24,168.14,16.2343]
[1721939531580,5.9443,168.23,168.14,16.2343]
[1721939531757,5.9446,168.22,168.14,16.2343]
[1721939531950,7.4314255,168.21,168.14,16.2343]
[1721939532156,1.48659201,168.2,168.14,16.2343]
[1721939532475,5.9446,168.22,168.14,16.2343]
[1721939532665,15.5238,168.25,168.1,21.812]
[1721939532666,7.43159935,168.21,168.1,21.812]
[1721939532975,5.9459,168.19,168.1,21.812]
[1721939533155,5.9454,168.2,168.1,21.812]
[1721939533481,5.947,168.16,168.1,21.812]
[1721939533663,1.48698801,168.15,168.07,7.8754209]
[1721939533977,5.9478,168.13,168.07,7.8754209]
[1721939534162,1.48734825,168.12,168.06,6.4721]
[1721939534362,21.0643,168.16,168.06,6.4721]
[1721939534573,21.0643,168.16,168.07,0.49967947]
[1721939535096,5.9475,168.14,168.06,6.4721]
[1721939535261,15.1174,168.16,168.06,6.4721]
[1721939535464,16.60466207,168.16,168.06,6.4721]
[1721939535903,34.48466207,168.16,168.06,6.4721]
[1721939536068,20.0,168.15,168.02,15.3168]
[1721939536264,5.9481,168.13,168.02,15.3168]
[1721939536482,1.48743946,168.12,168.02,15.3168]
[1721939537468,1.48743946,168.12,168.01,6.0805]
[1721939537469,5.9496,168.08,168.01,6.0805]
[1721939537666,1.4878687,168.07,167.98,15.8792]
[1721939538009,1.4878687,168.07,167.94,22.08085937]
[1721939538010,5.9516,168.03,167.94,22.08085937]
[1721939538177,15.2928,168.07,167.95,0.50189394]
[1721939538506,33.2885,168.11,167.96,0.50131827]
[1721939538680,20.0,168.1,167.96,0.50131827]
[1721939538885,5.9493,168.09,167.96,0.50131827]
[1721939539393,5.9504,168.06,167.95,8.1113709]
[1721939539895,5.9499,168.07,167.96,0.50132392]
[1721939540397,5.9505,168.06,167.96,0.50132392]
[1721939542093,5.9516,168.03,167.94,15.8792]
[1721939542299,5.9509,168.05,167.94,15.8792]
[1721939542473,5.9512,168.04,167.94,15.8792]
[1721939542674,5.9512,168.04,167.93,6.0805]
[1721939542675,17.83860091,168.04,167.93,6.0805]
[1721939542896,5.952,168.01,167.93,6.0805]
[1721939543069,7.44043292,168.01,167.93,6.0805]
[1721939543272,7.44043292,168.01,167.9,15.8537]
[1721939543273,5.9531,167.98,167.9,15.8537]
[1721939543507,5.9528,167.99,167.9,15.8537]
[1721939543682,27.34,168.02,167.9,15.8537]
[1721939543683,7.44166691,167.98,167.9,15.8537]
[1721939543880,5.9534,167.97,167.89,6.2786]
[1721939544079,7.44273083,167.96,167.89,6.2786]
[1721939544282,5.9535,167.97,167.89,6.2786]
[1721939544790,1.4889374,167.98,167.89,6.2786]
[1721939544791,5.9531,167.98,167.89,6.2786]
[1721939545168,5.9543,167.95,167.89,6.2786]
[1721939545477,1.48893822,167.94,167.89,6.2786]
[1721939545883,5.9538,167.96,167.89,6.2786]
[1721939546182,7.44223787,167.98,167.89,6.2786]
[1721939546387,25.9534,167.97,167.89,6.2786]
[1721939546691,7.44273962,167.96,167.89,6.2786]
[1721939546989,5.9539,167.96,167.86,15.8537]
[1721939547370,1.48893761,167.95,167.86,15.8537]
[1721939547576,27.34,167.99,167.86,16.35746929]
[1721939547788,20.0,167.98,167.87,45.0]
[1721939548102,20.0,167.98,167.88,0.50316554]
[1721939548599,5.9526,168.0,167.88,0.50316554]
[1721939548807,20.0,167.99,167.88,0.50316554]
[1721939548972,5.9524,168.0,167.88,0.50316554]
[1721939549169,5.952,168.01,167.88,0.50316554]
[1721939549373,33.2917,168.02,167.88,0.50316554]
[1721939549573,5.9517,168.02,167.88,0.50316554]
[1721939550100,256.1,168.06,167.9,27.34]
[1721939550311,43.1747,168.08,167.93,27.34]
[1721939550605,43.1747,168.08,167.94,62.14955192]
[1721939551205,5.9495,168.09,167.95,6.5328]
[1721939551387,1.48775701,168.1,167.96,45.50094118]
[1721939551704,17.88,168.07,167.95,6.5328]
[1721939551899,45.22,168.05,167.95,6.5328]
[1721939552098,45.22,168.05,167.91,6.5328]
[1721939552099,5.9526,168.0,167.91,6.5328]
[1721939552397,5.952,168.01,167.91,6.5328]
[1721939552584,5.9524,168.0,167.91,6.5328]
[1721939552893,5.9531,167.98,167.91,6.5328]
[1721939553096,1.48858361,167.99,167.91,6.5328]
[1721939553302,27.1258,168.03,167.92,0.50266755]
[1721939553472,21.0109,168.03,167.92,0.50266755]
[1721939553901,411.18,168.06,167.93,0.50232754]
[1721939554083,21.4882086,168.05,167.93,0.50232754]
[1721939554299,5.9517,168.02,167.93,0.50232754]
[1721939554497,5.9533,167.98,167.91,6.5328]
[1721939554798,5.9531,167.98,167.91,6.5328]
[1721939555109,5.9528,167.99,167.91,6.5328]
[1721939555306,5.9531,167.98,167.86,6.97468073]
[1721939555479,5.9551,167.93,167.86,6.4717]
[1721939555680,1.48908276,167.95,167.86,6.4717]
[1721939555901,45.563,167.98,167.86,6.4717]
[1721939556075,20.0,167.97,167.86,6.4717]
[1721939556277,5.9546,167.94,167.86,6.4717]
[1721939556672,1.48910484,167.96,167.86,6.4717]
[1721939556876,5.9542,167.95,167.86,6.4717]
[1721939557077,5.9545,167.94,167.86,6.4717]
[1721939557271,1.48910422,167.93,167.86,6.4717]
[1721939557491,5.9541,167.95,167.86,6.4717]
[1721939558077,5.9546,167.94,167.86,6.4717]
[1721939558280,5.955,167.93,167.86,6.4717]
[1721939558487,1.489133,167.92,167.86,6.4717]
[1721939559400,5.9543,167.95,167.86,6.4717]
[1721939559588,5.9545,167.94,167.86,6.4717]
[1721939560111,5.9549,167.93,167.86,6.4717]
[1721939560293,1.48925883,167.92,167.81,7.0611015]
[1721939560600,5.9562,167.9,167.81,7.0611015]
[1721939561184,5.9566,167.88,167.81,7.0611015]
[1721939562112,1.48964421,167.87,167.81,0.7830015]
[1721939562287,7.44664421,167.87,167.81,0.7830015]
[1721939562497,1.48976516,167.86,167.81,0.7830015]
[1721939562681,5.9587,167.82,167.81,0.7830015]
[1721939562884,25.32891243,167.82,167.81,0.7830015]
[1721939563190,5.9602,167.78,167.7,6.6147]
[1721939563402,39.37021243,167.82,167.7,6.6147]
[1721939563403,7.451169,167.77,167.7,6.6147]
[1721939563579,1.49056636,167.76,167.7,6.6147]
[1721939563784,5.9606,167.77,167.7,6.6147]
[1721939564108,19.37052708,167.81,167.7,6.6147]
[1721939564406,23.8399,167.79,167.7,6.6147]
[1721939564587,25.33042906,167.79,167.7,6.6147]
[1721939564782,20.0,167.8,167.7,7.12216941]
[1721939564783,25.9594,167.8,167.7,7.12216941]
[1721939564984,20.0,167.8,167.71,0.50717188]
[1721939565282,5.9585,167.83,167.71,0.50717188]
[1721939565489,20.0,167.82,167.71,0.50717188]
[1721939565691,20.0,167.82,167.71,45.50717188]
[1721939566384,20.0,167.82,167.71,45.0]
[1721939566592,5.9594,167.81,167.71,45.0]
[1721939567095,5.9595,167.8,167.7,6.6147]
[1721939567407,7.45029034,167.79,167.7,6.6147]
[1721939568203,5.9591,167.81,167.7,6.6147]
[1721939568388,20.0,167.8,167.71,45.50728548]
[1721939568586,5.9601,167.79,167.71,45.0]
[1721939568907,5.9601,167.79,167.7,6.6147]
[1721939569122,7.45044613,167.79,167.7,6.6147]
[1721939570111,21.49043352,167.82,167.71,0.5072879]
[1721939570410,5.9596,167.8,167.71,45.0]
[1721939570589,1.49049391,167.79,167.7,6.6147]
[1721939571034,5.9607,167.77,167.7,6.6147]
[1721939571186,1.49064852,167.76,167.66,6.3577]
[1721939571809,19.37064852,167.76,167.66,6.3577]
[1721939571991,17.88,167.73,167.65,0.7830015]
[1721939572195,21.4911144,167.72,167.65,0.7830015]
[1721939572621,1.49095947,167.71,167.65,0.7830015]
[1721939572826,1.49105261,167.7,167.67,5.9639]
[1721939573722,25.9624,167.72,167.65,0.7830015]
[1721939573723,21.49103912,167.72,167.65,6.7475015]
[1721939573936,5.9627,167.71,167.66,5.9642]
[1721939574143,5.9624,167.72,167.66,5.9642]
[1721939574642,23.8428,167.71,167.66,5.9642]
[1721939574823,1.4911918,167.72,167.65,0.7830015]
[1721939575322,20.0,167.72,167.67,5.9637]
[1721939575525,20.0,167.72,167.65,0.7830015]
[1721939575741,5.9626,167.72,167.66,5.9641]
[1721939576068,5.9626,167.72,167.67,5.964]
[1721939576238,21.49104495,167.74,167.68,5.9636]
[1721939576437,21.49104495,167.74,167.67,5.964]
[1721939576438,5.9622,167.73,167.67,5.964]
[1721939576623,25.9624,167.72,167.67,5.964]
[1721939576819,25.9624,167.72,167.65,0.7830015]
[1721939576820,21.4910455,167.74,167.65,0.7830015]
[1721939577029,22.264,167.75,167.7,5.9627]
[1721939577227,5.9617,167.74,167.68,5.9636]
[1721939577531,22.2641,167.75,167.65,0.7830015]
[1721939577737,22.2641,167.75,167.65,1.2913555]
[1721939577738,16.3028,167.75,167.65,1.2913555]
[1721939577930,5.9609,167.76,167.65,1.2913555]
[1721939578450,7.45126867,167.78,167.65,1.2913555]
[1721939578638,12.4094,167.79,167.65,1.2913555]
[1721939579345,12.4093,167.79,167.65,1.2913555]
[1721939579556,1.49045319,167.82,167.65,1.2913555]
[1721939579740,12.4838,167.83,167.67,6.1827]
[1721939579926,5.959,167.82,167.68,65.50655167]
[1721939580447,256.1,167.84,167.68,65.50655167]
[1721939580748,5.9577,167.85,167.68,65.50655167]
[1721939581067,7.4475369,167.85,167.68,65.50655167]
[1721939581426,1.4898369,167.85,167.68,65.50655167]
[1721939581634,5.9598,167.79,167.68,65.50655167]
[1721939581829,1.49029405,167.78,167.68,65.0]
[1721939582237,1.49046318,167.83,167.68,65.0]
[1721939582544,5.9595,167.8,167.68,65.5071956]
[1721939582940,5.9602,167.78,167.68,65.5071956]
[1721939583140,5.9606,167.77,167.67,6.1827]
[1721939583455,5.9597,167.8,167.67,6.1827]
[1721939583633,20.0,167.79,167.68,0.50720357]
[1721939584230,5.9612,167.75,167.67,6.1827]
[1721939584472,1.49062768,167.74,167.65,0.7830015]
[1721939584780,1.49094271,167.73,167.65,0.7830015]
[1721939585059,5.963,167.7,167.65,0.7830015]
[1721939585233,1.49113516,167.69,167.65,0.7830015]
[1721939585629,5.9623,167.72,167.65,0.7830015]
[1721939585835,1.49104219,167.74,167.65,0.7830015]
[1721939586038,5.9626,167.72,167.66,5.9642]
[1721939586234,7.4538192,167.71,167.66,5.9642]
[1721939586654,5.9627,167.71,167.66,5.9642]
[1721939587238,5.9627,167.71,167.65,6.7477015]
[1721939587742,1.4912001,167.7,167.66,5.9643]
[1721939587938,7.45349775,167.72,167.66,5.9643]
[1721939588348,5.9628,167.71,167.66,5.9643]
[1721939588555,5.9618,167.74,167.65,0.7830015]
[1721939588847,5.9623,167.72,167.66,5.9643]
[1721939589050,1.49112343,167.71,167.66,5.9643]
[1721939589238,5.9627,167.71,167.65,6.7477015]
[1721939589863,20.0,167.73,167.65,0.7830015]
[1721939590059,1.49106102,167.75,167.65,0.7830015]
[1721939590060,21.49106102,167.75,167.67,5.9638]
[1721939590373,5.9627,167.71,167.66,5.9644]
[1721939590538,5.9623,167.72,167.67,5.964]
[1721939591154,5.9623,167.72,167.66,5.9643]
[1721939591365,5.962,167.73,167.67,5.9639]
[1721939591559,20.0,167.72,167.67,5.9637]
[1721939591737,5.9628,167.71,167.66,5.9644]
[1721939591939,1.49113083,167.7,167.65,0.7830015]
[1721939592151,5.9644,167.66,167.65,0.7830015]
[1721939592641,1.49113083,167.7,167.65,0.7830015]
[1721939592855,5.9642,167.67,167.65,0.7830015]
[1721939593257,5.9644,167.66,167.65,0.7830015]
[1721939594446,23.8444,167.66,167.65,0.7830015]
[1721939594643,5.966,167.62,167.57,5.9673]
[1721939594971,1.49188691,167.61,167.57,5.9673]
[1721939595177,1.49188211,167.6,167.57,5.9673]
[1721939595366,1.49188328,167.59,167.51,6.1702]
[1721939595672,5.9674,167.58,167.51,6.1702]
[1721939595851,5.9674,167.58,167.48,0.7830015]
[1721939596043,7.46016874,167.57,167.48,0.7830015]
[1721939596245,20.0,167.56,167.48,0.7830015]
[1721939596475,1.49262581,167.56,167.48,0.7830015]
[1721939596664,50.68,167.64,167.57,5.9673]
[1721939596844,1.49202166,167.63,167.58,5.9672]
[1721939597166,1.49202166,167.63,167.48,1.29511001]
[1721939597167,25.9651,167.64,167.59,5.9668]
[1721939597349,5.9656,167.63,167.57,5.9673]
[1721939597548,25.966,167.62,167.57,5.9673]
[1721939597866,20.0,167.61,167.48,1.29511001]
[1721939598060,5.9666,167.6,167.55,5.968]
[1721939598271,5.9662,167.61,167.55,5.968]
[1721939598944,5.967,167.59,167.48,1.29511001]
[1721939599370,5.9665,167.6,167.55,5.9682]
[1721939599664,5.967,167.59,167.54,5.9687]
[1721939599867,1.49223873,167.58,167.48,0.7830015]
[1721939600083,1.49245683,167.57,167.5,5.97]
[1721939600645,5.968,167.56,167.5,5.97]
[1721939600859,25.9675,167.58,167.48,0.7830015]
[1721939601379,5.9677,167.57,167.48,0.7830015]
[1721939601558,5.9677,167.57,167.52,5.9691]
[1721939601748,5.9677,167.57,167.48,0.7830015]
[1721939601951,7.46008407,167.57,167.48,45.7830015]
[1721939602248,1.49238407,167.57,167.5,5.97]
[1721939602462,1.49238407,167.57,167.48,0.7830015]
[1721939602463,5.9686,167.55,167.48,0.7830015]
[1721939602773,5.9679,167.57,167.48,0.7830015]
[1721939602965,5.9679,167.57,167.52,5.9692]
[1721939603167,20.0,167.58,167.48,0.7830015]
[1721939603480,5.966,167.62,167.57,5.9676]
[1721939603685,380.5,167.65,167.49,0.51162636]
[1721939603686,389.78448163,167.67,167.55,5.968]
[1721939603987,17.88,167.63,167.48,0.7830015]
[1721939604274,1.4924745,167.62,167.48,0.7830015]
[1721939604452,5.9668,167.6,167.55,5.9682]
[1721939604649,7.4585745,167.62,167.56,5.9676]
[1721939604853,20.0,167.61,167.49,0.51155863]
[1721939605164,1.49190479,167.6,167.49,20.0]
[1721939605376,1.49190479,167.6,167.5,45.0]
[1721939605554,1.49207276,167.64,167.51,20.0]
[1721939605751,5.9665,167.61,167.55,5.968]
[1721939605957,21.49203249,167.6,167.55,5.968]
[1721939606153,20.0,167.6,167.52,45.0]
[1721939606367,20.0,167.6,167.57,5.9673]
[1721939606693,6.3872,167.67,167.58,0.51061227]
[1721939606849,12.3514,167.67,167.62,5.9656]
[1721939607053,5.9645,167.66,167.61,5.9661]
[1721939607277,6.3872,167.67,167.62,5.9657]
[1721939607486,6.3872,167.67,167.63,5.9655]
[1721939607975,25.7586219,167.67,167.58,5.9672]
[1721939608157,5.9658,167.63,167.58,5.9672]
[1721939608359,5.965,167.65,167.6,5.9663]
[1721939608558,5.9641,167.67,167.62,5.9655]
[1721939608767,21.9038,167.68,167.63,5.9654]
[1721939609356,19.37134549,167.71,167.57,0.50990999]
[1721939609566,19.37134549,167.71,167.57,65.50990999]
[1721939609773,5.963,167.71,167.65,5.9645]
[1721939609982,5.963,167.71,167.66,5.9641]
[1721939610183,12.5727,167.72,167.66,5.9641]
[1721939610386,5.9616,167.74,167.6,0.50871979]